[Event "Austria Championship Blitz 2024"]
[Site "Innsbruck"]
[Date "2024.06.01"]
[Round "9.1"]
[White "Horvath, Dominik"]
[Black "Platzgummer, Fabian"]
[Result "1-0"]
[ECO "B22"]
[WhiteElo "2554"]
[BlackElo "2311"]
[Annotator "TA"]
[PlyCount "89"]
[EventDate "2024.06.01"]
[EventType "swiss"]
[EventCountry "AUT"]
[SourceTitle "playchess.com"]
[Source "ChessBase"]
[SourceQuality "1"]
[TimeControl "180+2"]

{[%evp 12,88,0,6,54,23,26,25,14,26,86,86,67,25,12,4,12,12,11,0,33,23,42,39,50,20,80,31,25,37,101,0,104,10,12,18,19,33,34,32,15,15,88,48,40,-9,90,75,95,105,139,36,32,-41,225,296,297,283,281,206,191,115,121,133,123,114,184,97,136,132,272,266,378,353,383,203,975,847,29999]} 1. e4 {[%emt 0:00:02]} c5 {[%emt 0:00:01]} 2. Nf3 {[%emt 0:00:01]} a6 {[%emt 0:00:01]} 3. c3 {[%emt 0:00:10]} d5 {[%emt 0:00:02]} 4. exd5 {[%emt 0:00:01]} Qxd5 {[%emt 0:00:02]} 5. d4 {[%emt 0:00:01]} Nf6 {[%emt 0:00:01]} 6. Na3 {[%emt 0:00:04]} e6 {[%emt 0:00:26]} 7. Nc4 {[%emt 0:00:08]} Qd8 {[%emt 0:00:05] Prevents Nb6} (7... Nbd7 $11 {feels stronger.}) 8. a4 {[%emt 0:00:13]} Nc6 {[%emt 0:00:07]} 9. Be3 {[%emt 0:00:10]} cxd4 {[%emt 0:00:02] White has an edge.} 10. Nxd4 {[%emt 0:00:02]} Nd5 {[%emt 0:00:24]} (10... Bd7 $11) 11. Nxc6 $16 {[%emt 0:00:09]} bxc6 {[%emt 0:00:01]} 12. Bd2 {[%emt 0:00:07]} Bc5 {[%emt 0:00:10]} 13. Be2 {[%emt 0:00:07]} O-O {[%emt 0:00:09]} 14. b4 {[%emt 0:00:05]} Be7 {[%emt 0:00:03]} 15. O-O {[%emt 0:00:03]} Bf6 {[%emt 0:00:05]} 16. Rc1 {[%emt 0:00:01]} e5 {[%emt 0:00:05]} 17. Na5 {[%emt 0:00:13]} Qc7 {[%emt 0:00:14]} 18. Bf3 {[%emt 0:00:05][%cal Oa5c6] Strongly threatening Nxc6!} Bd7 {[%emt 0:00:17]} (18... Bf5 $11) 19. Qb3 {[%emt 0:00:06]} (19. Qe2 $16) 19... Rfd8 $14 {[%emt 0:00:10]} 20. Rfd1 {[%emt 0:00:07]} Be6 {[%emt 0:00:03]} (20... Rab8 $14 21. Qc4 Nb6) 21. Qc2 {[%emt 0:00:05]} (21. Nxc6 $16 Ne3 (21... Qxc6 $2 22. c4 $18) 22. Qb1) 21... Rac8 {[%emt 0:00:04]} (21... c5 $11 {keeps the balance.}) 22. Nb3 {[%emt 0:00:02]} (22. c4 $16 Ne7 23. Be4) 22... Be7 $11 {[%emt 0:00:03]} 23. Be2 {[%emt 0:00:07]} Qb7 {[%emt 0:00:07]} 24. Na5 {[%emt 0:00:03]} Qb6 {[%emt 0:00:03]} 25. Nc4 {[%emt 0:00:03]} Qc7 {[%emt 0:00:03]} 26. Qe4 {[%emt 0:00:09]} Bf6 {[%emt 0:00:14]} (26... Nf6 $11 {remains equal.} 27. Qb1 (27. Qxe5 Qxe5 28. Nxe5 Bb3 $11) 27... Nd5) 27. Ne3 {[%emt 0:00:09]} Nf4 {[%emt 0:00:03]} 28. Bf1 {[%emt 0:00:04]} (28. Bxa6 $14 Ra8 29. Bf1 Rxa4 30. Be1) 28... Bd5 {[%emt 0:00:03]} (28... Bb3 $11) 29. Nxd5 cxd5 {[%emt 0:00:01]} 30. Qf3 {[%emt 0:00:04][%cal Od2f4]} a5 {[%emt 0:00:03]} 31. g3 {[%emt 0:00:04]} (31. Be3 $1 $16 {g3 would now be deadly.} g5 32. Qg4) 31... Ne6 $14 {[%emt 0:00:03]} 32. Be3 {[%emt 0:00:07]} ({White should play} 32. Qe2 $14) 32... axb4 $2 {[%emt 0:00:20][%mdl 8192]} (32... e4 $1 $15 {keeps the upper hand.} 33. Qf5 Be5) 33. cxb4 $18 {[%emt 0:00:01]} Qd7 {[%emt 0:00:07]} 34. Rxc8 {[%emt 0:00:08]} (34. Bb5 $6 Qe7 $18) 34... Rxc8 {[%emt 0:00:01]} 35. Qxd5 {[%emt 0:00:09]} Qxa4 {[%emt 0:00:02][%cal Oc8d8] ...Rd8! is the strong threat.} 36. Qd7 {[%emt 0:00:10]} ({But not} 36. b5 $2 Rd8 $19) ({Better is} 36. Qb7 $1 $18 {[%cal Rb7c8]} Qxd1 37. Qxc8+ Qd8 38. Qb7) 36... Qxd7 $16 {[%emt 0:00:11]} 37. Rxd7 {[%emt 0:00:01]} Nd4 {[%emt 0:00:01]} 38. b5 {[%emt 0:00:12] And now b6 would win. White is more active.} Rb8 {[%emt 0:00:00] [#]} (38... Bd8 $16 39. Rb7 (39. Bc4 Kf8 $16) 39... Kf8) 39. Rd5 {[%emt 0:00:07]} (39. f4 $1 $18) 39... Kf8 {[%emt 0:00:06] [#]} 40. f4 $1 {[%emt 0:00:01]} Nf3+ {[%emt 0:00:10]} (40... Rd8 $16 41. Rxd8+ Bxd8) 41. Kg2 $18 {[%emt 0:00:05]} Ne1+ {[%emt 0:00:03]} (41... e4 $142 42. b6 Ne1+ 43. Kf2 Nd3+ 44. Kg1 (44. Bxd3 exd3 45. Rxd3 Ke8 $16) 44... g6) 42. Kh3 {[%emt 0:00:02]} Nc2 {[%emt 0:00:03]} 43. Bc5+ {[%emt 0:00:01]} (43. Ba7 $142 Re8 44. b6) 43... Ke8 $2 {[%emt 0:00:03]} (43... Be7 44. Bg1 (44. fxe5 Bxc5 45. Rxc5 Ne3 $18) 44... exf4 45. gxf4 g6) 44. b6 {[%emt 0:00:02][%cal Rf1b5]} exf4 {[%emt 0:00:04]} 45. Bb5# {[%emt 0:00:03] Weighted Error Value: White=0.34/Black=0.53.  Loses game:     	---       	Black=1      Mistake:       	White=9     	Black=10     Inaccurate:     	White=4     	Black=4      OK:         	White=13    	Black=13     Best:        	White=1     	Black=1} 1-0

[Event "Austria Championship Blitz 2024"]
[Site "Innsbruck"]
[Date "2024.06.01"]
[Round "9.2"]
[White "Binder, Moriz"]
[Black "Schwabeneder, Florian"]
[Result "0-1"]
[ECO "E90"]
[WhiteElo "2210"]
[BlackElo "2405"]
[Annotator "RC"]
[PlyCount "43"]
[EventDate "2024.06.01"]
[EventType "swiss"]
[EventCountry "AUT"]
[SourceTitle "playchess.com"]
[Source "ChessBase"]
[SourceQuality "1"]
[TimeControl "180+2"]

1. d4 {[%emt 0:00:01]} d6 {[%emt 0:00:01]} 2. Nf3 {[%emt 0:00:03]} Nf6 {[%emt 0:00:01]} 3. c4 {[%emt 0:00:01]} g6 {[%emt 0:00:02]} 4. Nc3 {[%emt 0:00:00]} Bg7 {[%emt 0:00:01]} 5. e4 {[%emt 0:00:01]} Bg4 {[%emt 0:00:01]} 6. Be2 {[%emt 0:00:04]} Bxf3 {[%emt 0:00:03]} 7. Bxf3 {[%emt 0:00:01]} e5 {[%emt 0:00:00]} 8. d5 {[%emt 0:00:22]} h5 {[%emt 0:00:02]} 9. Be3 {[%emt 0:00:14]} Bh6 {[%emt 0:00:02]} 10. Bxh6 {[%emt 0:00:38]} Rxh6 {[%emt 0:00:01]} 11. g4 {[%emt 0:00:05]} hxg4 {[%emt 0:00:09]} 12. Bxg4 {[%emt 0:00:02]} Nbd7 {[%emt 0:00:11]} 13. Bxd7+ {[%emt 0:00:25]} Qxd7 {[%emt 0:00:02]} 14. Qf3 {[%emt 0:00:02]} Nh5 {[%emt 0:00:21]} 15. O-O-O {[%emt 0:00:44]} Nf4 {[%emt 0:00:07]} 16. Ne2 {[%emt 0:00:15]} Rh3 {[%emt 0:00:09]} 17. Ng3 {[%emt 0:00:08]} Qa4 {[%emt 0:00:25]} 18. Kb1 {[%emt 0:00:05]} Ke7 {[%emt 0:00:25]} 19. Rc1 {[%emt 0:00:08]} b6 {[%emt 0:00:03]} 20. Qg4 {[%emt 0:00:06]} Qd7 {[%emt 0:00:16]} 21. Qg5+ {[%emt 0:00:09]} Kf8 {[%emt 0:00:44]} 22. Qf6 {[%emt 0:00:12]} 0-1

[Event "Austria Championship Blitz 2024"]
[Site "Innsbruck"]
[Date "2024.06.01"]
[Round "9.3"]
[White "Lerch, Johannes"]
[Black "Blohberger, Felix"]
[Result "0-1"]
[ECO "A17"]
[WhiteElo "2208"]
[BlackElo "2506"]
[Annotator "RC"]
[PlyCount "140"]
[EventDate "2024.06.01"]
[EventType "swiss"]
[EventCountry "AUT"]
[SourceTitle "playchess.com"]
[Source "ChessBase"]
[SourceQuality "1"]
[TimeControl "180+2"]

1. Nf3 {[%emt 0:00:02]} d5 {[%emt 0:00:01]} 2. e3 {[%emt 0:00:00]} Nf6 {[%emt 0:00:02]} 3. c4 {[%emt 0:00:01]} e6 {[%emt 0:00:00]} 4. Nc3 {[%emt 0:00:01]} a6 {[%emt 0:00:01]} 5. b3 {[%emt 0:00:06]} c5 {[%emt 0:00:01]} 6. cxd5 {[%emt 0:00:02]} exd5 {[%emt 0:00:02]} 7. d4 {[%emt 0:00:01]} Nc6 {[%emt 0:00:07]} 8. Bb2 {[%emt 0:00:01]} Bg4 {[%emt 0:00:02]} 9. dxc5 {[%emt 0:00:07]} Bxc5 {[%emt 0:00:02]} 10. Be2 {[%emt 0:00:01]} O-O {[%emt 0:00:02]} 11. O-O {[%emt 0:00:02]} Qd6 {[%emt 0:00:05]} 12. h3 {[%emt 0:00:09]} Bf5 {[%emt 0:00:37]} 13. Rc1 {[%emt 0:00:06]} Rad8 {[%emt 0:00:09]} 14. Na4 {[%emt 0:00:16]} Ba7 {[%emt 0:00:10]} 15. Bd4 {[%emt 0:00:17]} Nxd4 {[%emt 0:00:06]} 16. Nxd4 {[%emt 0:00:10]} Bb8 {[%emt 0:00:05]} 17. Nf3 {[%emt 0:00:12]} Be4 {[%emt 0:00:01]} 18. g3 {[%emt 0:00:05]} Nh5 {[%emt 0:00:33]} 19. Qe1 {[%emt 0:00:12]} Rc8 {[%emt 0:00:11]} 20. Nc3 {[%emt 0:00:07]} Nf6 {[%emt 0:00:26]} 21. Nxe4 {[%emt 0:00:11]} dxe4 {[%emt 0:00:12]} 22. Nd4 {[%emt 0:00:05]} g6 {[%emt 0:00:08]} 23. Kg2 {[%emt 0:00:11]} h5 {[%emt 0:00:01]} 24. h4 {[%emt 0:00:03]} Ba7 {[%emt 0:00:12]} 25. Rd1 {[%emt 0:00:09]} Qa3 {[%emt 0:00:05]} 26. Qd2 {[%emt 0:00:14]} Rfd8 {[%emt 0:00:01]} 27. Rc1 {[%emt 0:00:15]} Rxc1 {[%emt 0:00:12]} 28. Rxc1 {[%emt 0:00:04]} Bxd4 {[%emt 0:00:04]} 29. exd4 {[%emt 0:00:01]} Qd6 {[%emt 0:00:03]} 30. Rd1 {[%emt 0:00:05]} Kg7 {[%emt 0:00:01]} 31. a4 {[%emt 0:00:05]} Nd5 {[%emt 0:00:02]} 32. Bc4 {[%emt 0:00:03]} Re8 {[%emt 0:00:10]} 33. Bxd5 {[%emt 0:00:04]} Qxd5 {[%emt 0:00:01]} 34. Qe3 {[%emt 0:00:01]} Re6 {[%emt 0:00:04]} 35. Re1 {[%emt 0:00:04]} a5 {[%emt 0:00:04]} 36. Kg1 {[%emt 0:00:01]} Kg8 {[%emt 0:00:03]} 37. Kh2 {[%emt 0:00:02]} Kg7 {[%emt 0:00:02]} 38. Kg1 {[%emt 0:00:01]} Rb6 {[%emt 0:00:04]} 39. Qxe4 {[%emt 0:00:10]} Qxe4 {[%emt 0:00:01]} 40. Rxe4 {[%emt 0:00:01]} Rxb3 {[%emt 0:00:00]} 41. Re7 {[%emt 0:00:06]} Rb4 {[%emt 0:00:03]} 42. d5 {[%emt 0:00:04]} Rb6 {[%emt 0:00:04]} 43. d6 {[%emt 0:00:07]} Rxd6 {[%emt 0:00:02]} 44. Rxb7 {[%emt 0:00:09]} Rd4 {[%emt 0:00:01]} 45. Ra7 {[%emt 0:00:07]} Rxa4 {[%emt 0:00:01]} 46. Ra6 {[%emt 0:00:00]} Ra2 {[%emt 0:00:01]} 47. Kg2 {[%emt 0:00:01]} Kf8 {[%emt 0:00:11]} 48. Ra7 Kg7 {[%emt 0:00:00]} 49. Kg1 {[%emt 0:00:01]} a4 {[%emt 0:00:00]} 50. Kg2 {[%emt 0:00:00]} Kf6 {[%emt 0:00:00]} 51. Ra5 {[%emt 0:00:02]} Ke6 {[%emt 0:00:00]} 52. Kf3 {[%emt 0:00:01]} a3 {[%emt 0:00:00]} 53. Ke3 {[%emt 0:00:01]} Ra1 {[%emt 0:00:02]} 54. Kf3 {[%emt 0:00:01]} Kd6 {[%emt 0:00:02]} 55. Ra7 {[%emt 0:00:01]} Kc5 {[%emt 0:00:06]} 56. Kf4 {[%emt 0:00:15]} Kb4 {[%emt 0:00:04]} 57. Rxf7 {[%emt 0:00:03]} Rf1 {[%emt 0:00:02]} 58. Kg5 {[%emt 0:00:02]} a2 {[%emt 0:00:01]} 59. Ra7 {[%emt 0:00:05]} Rxf2 {[%emt 0:00:02]} 60. Kxg6 {[%emt 0:00:01]} Kb3 {[%emt 0:00:03]} 61. Kxh5 {[%emt 0:00:02]} Kb2 {[%emt 0:00:03]} 62. g4 {[%emt 0:00:04]} Rf3 {[%emt 0:00:01]} 63. Rxa2+ {[%emt 0:00:02]} Kxa2 {[%emt 0:00:01]} 64. g5 {[%emt 0:00:00]} Kb3 {[%emt 0:00:02]} 65. g6 {[%emt 0:00:02]} Kc4 {[%emt 0:00:01]} 66. Kg4 {[%emt 0:00:04]} Rf1 {[%emt 0:00:02]} 67. h5 {[%emt 0:00:02]} Kd5 {[%emt 0:00:01]} 68. h6 {[%emt 0:00:03]} Ke6 {[%emt 0:00:04]} 69. h7 {[%emt 0:00:06]} Rg1+ {[%emt 0:00:07]} 70. Kf3 {[%emt 0:00:02]} Ke5 {[%emt 0:00:02]} 0-1

[Event "Austria Championship Blitz 2024"]
[Site "Innsbruck"]
[Date "2024.06.01"]
[Round "9.4"]
[White "Shengelia, David"]
[Black "Balint, Peter"]
[Result "1-0"]
[ECO "D79"]
[WhiteElo "2465"]
[BlackElo "2343"]
[Annotator "TA"]
[PlyCount "61"]
[EventDate "2024.06.01"]
[EventType "swiss"]
[EventCountry "AUT"]
[SourceTitle "playchess.com"]
[Source "ChessBase"]
[SourceQuality "1"]
[TimeControl "180+2"]

{[%evp 19,61,17,22,12,30,-3,2,0,23,18,40,39,45,38,58,42,58,57,59,48,58,45,45,41,61,54,60,64,69,31,72,0,50,-8,0,0,24,0,418,429,915,907,29996,29997]} 1. d4 {[%emt 0:00:01]} Nf6 {[%emt 0:00:01]} 2. Nf3 {[%emt 0:00:01]} g6 {[%emt 0:00:02]} 3. c4 {[%emt 0:00:03]} Bg7 {[%emt 0:00:02]} 4. g3 {[%emt 0:00:01]} c6 {[%emt 0:00:01]} 5. Bg2 {[%emt 0:00:07]} O-O {[%emt 0:00:01]} 6. Nc3 {[%emt 0:00:01]} d5 {[%emt 0:00:01]} 7. cxd5 {[%emt 0:00:02]} cxd5 {[%emt 0:00:01]} 8. Ne5 {[%emt 0:00:01]} Nc6 {[%emt 0:00:03]} 9. Nxc6 {[%emt 0:00:06]} bxc6 {[%emt 0:00:01]} 10. O-O {[%emt 0:00:04]} Bf5 {[%emt 0:00:01]} 11. b3 {[%emt 0:00:14]} h5 {[%emt 0:00:33]} 12. Ba3 {[%emt 0:00:39][%cal Bc1a3,Ba3c5,Bc5d4][%mdl 32]} Re8 {[%emt 0:00:05]} 13. Rc1 {[%emt 0:00:08] The position is equal.} Rc8 {[%emt 0:00:04][%cal Oh5h4]} 14. Na4 {[%emt 0:00:30]} e5 {[%emt 0:00:09]} 15. dxe5 {[%emt 0:00:01]} Rxe5 {[%emt 0:00:02]} 16. Bc5 {[%emt 0:00:02]} Qd7 {[%emt 0:00:23][%cal Oh5h4]} 17. Bd4 {[%emt 0:00:02]} Ree8 {[%emt 0:00:03]} 18. Nc5 {[%emt 0:00:02]} Qe7 {[%emt 0:00:01]} 19. Re1 {[%emt 0:00:04]} h4 {[%emt 0:00:03]} 20. Qd2 {[%emt 0:00:21]} h3 {[%emt 0:00:09]} 21. Bf3 {[%emt 0:00:16]} Ne4 {[%emt 0:01:03]} 22. Bxe4 {[%emt 0:00:10]} dxe4 {[%emt 0:00:06]} 23. Bxg7 {[%emt 0:00:02]} Kxg7 {[%emt 0:00:02]} 24. Red1 {[%emt 0:00:12]} Kh7 {[%emt 0:00:10]} 25. Qf4 {[%emt 0:00:06]} (25. Qe3 $16) 25... Red8 {[%emt 0:00:13]} (25... e3 $11) 26. b4 {[%emt 0:00:08] [#]} (26. Re1 $14) 26... a5 $1 {[%emt 0:00:05]} 27. g4 {[%emt 0:00:01]} (27. bxa5 $2 Rxd1+ 28. Rxd1 Qxc5 $19) (27. a3 Rxd1+) 27... Rxd1+ {[%emt 0:00:08]} 28. Rxd1 {[%emt 0:00:01]} axb4 $2 {[%emt 0:00:01][%mdl 8192]} (28... Rd8 $11 {and Black stays safe.} 29. Rb1 (29. Rxd8 Qxd8 30. f3 exf3 $15) 29... Qh4 30. bxa5 e3 (30... Qxg4+ 31. Qxg4 Bxg4 32. a6 $11)) 29. gxf5 $18 {[%emt 0:00:03]} Qxc5 {[%emt 0:00:00]} (29... Rd8 $142 30. Rb1 (30. Qxe4 $2 Rxd1#) 30... Rd4) 30. fxg6+ {[%emt 0:00:12]} (30. Qxe4 Qxf5 31. Qxf5 gxf5 $19) 30... fxg6 {[%emt 0:00:13]} 31. Rd7+ {[%emt 0:00:02] Weighted Error Value: White=0.15 (very precise) /Black=0.79.  Loses game:     	---       	Black=1      Mistake:       	White=2     	Black=2      Inaccurate:     	White=2     	Black=2      OK:         	White=4     	Black=3      Best:        	White=4     	---} (31. Qxe4 $2 {loses.} Qg5+ 32. Kf1 Rd8 $19) 1-0

[Event "Austria Championship Blitz 2024"]
[Site "Innsbruck"]
[Date "2024.06.01"]
[Round "9.5"]
[White "Wohlfahrt, Herbert"]
[Black "Wetscher, Wolfgang"]
[Result "1-0"]
[ECO "A55"]
[WhiteElo "2328"]
[BlackElo "1937"]
[Annotator "RC"]
[PlyCount "145"]
[EventDate "2024.06.01"]
[EventType "swiss"]
[EventCountry "AUT"]
[SourceTitle "playchess.com"]
[Source "ChessBase"]
[SourceQuality "1"]
[TimeControl "180+2"]

1. d4 {[%emt 0:00:00]} c6 {[%emt 0:00:01]} 2. c4 {[%emt 0:00:04]} Qc7 {[%emt 0:00:01]} 3. e4 {[%emt 0:00:01]} d6 {[%emt 0:00:00]} 4. Nc3 {[%emt 0:00:01]} Nd7 {[%emt 0:00:01]} 5. Nf3 {[%emt 0:00:01]} e5 {[%emt 0:00:00]} 6. Be2 {[%emt 0:00:01]} Ngf6 {[%emt 0:00:01]} 7. O-O {[%emt 0:00:02]} Be7 {[%emt 0:00:00]} 8. h3 {[%emt 0:00:03]} Nf8 {[%emt 0:00:02]} 9. Be3 {[%emt 0:00:01]} Ng6 {[%emt 0:00:01]} 10. Re1 {[%emt 0:00:02]} O-O {[%emt 0:00:01]} 11. b4 {[%emt 0:00:03]} Bd7 {[%emt 0:00:03]} 12. Qb3 {[%emt 0:00:08]} h6 {[%emt 0:00:02]} 13. a4 {[%emt 0:00:01]} Nh7 {[%emt 0:00:02]} 14. c5 {[%emt 0:00:12]} dxc5 {[%emt 0:00:03]} 15. bxc5 {[%emt 0:00:17]} exd4 {[%emt 0:00:11]} 16. Bxd4 {[%emt 0:00:04]} Be6 {[%emt 0:00:21]} 17. Bc4 {[%emt 0:00:03]} Bxc4 18. Qxc4 {[%emt 0:00:01]} Ng5 {[%emt 0:00:27]} 19. Nxg5 {[%emt 0:00:19]} Bxg5 {[%emt 0:00:02]} 20. Be3 {[%emt 0:00:06]} Bxe3 21. Rxe3 {[%emt 0:00:01]} Ne5 {[%emt 0:00:13]} 22. Qb4 {[%emt 0:00:09]} a5 {[%emt 0:00:17]} 23. Qb3 {[%emt 0:00:06]} Nd7 {[%emt 0:00:06]} 24. Qc4 {[%emt 0:00:10]} Ne5 {[%emt 0:00:15]} 25. Qe2 {[%emt 0:00:02]} Nd7 {[%emt 0:00:03]} 26. Rc1 {[%emt 0:00:12]} Rad8 {[%emt 0:00:08]} 27. Rg3 {[%emt 0:00:04]} Kh8 {[%emt 0:00:04]} 28. Qg4 {[%emt 0:00:14]} Rg8 {[%emt 0:00:07]} 29. Qf5 {[%emt 0:00:07]} Nf8 {[%emt 0:00:29]} 30. e5 {[%emt 0:00:08]} Qd7 {[%emt 0:00:14]} 31. Qf3 {[%emt 0:00:13]} Ng6 {[%emt 0:00:12]} 32. Re1 {[%emt 0:00:09]} Ne7 {[%emt 0:00:05]} 33. Qxf7 {[%emt 0:00:08]} Rdf8 {[%emt 0:00:04]} 34. Qc4 {[%emt 0:00:04]} Nf5 {[%emt 0:00:04]} 35. Rf3 {[%emt 0:00:05]} Qd2 {[%emt 0:00:17]} 36. Re2 {[%emt 0:00:09]} Qc1+ {[%emt 0:00:02]} 37. Kh2 {[%emt 0:00:01]} Qg5 {[%emt 0:00:08]} 38. e6 {[%emt 0:00:02]} Ne7 {[%emt 0:00:03]} 39. Rxf8 {[%emt 0:00:46]} Rxf8 40. g3 {[%emt 0:00:00]} Qf6 {[%emt 0:00:01]} 41. Ne4 {[%emt 0:00:00]} Qf3 {[%emt 0:00:02]} 42. Nd6 {[%emt 0:00:00]} Nd5 {[%emt 0:00:07]} 43. Nf7+ {[%emt 0:00:00]} Kg8 {[%emt 0:00:04]} 44. Qe4 {[%emt 0:00:00]} Qxe4 {[%emt 0:00:03]} 45. Rxe4 {[%emt 0:00:00]} Nf6 {[%emt 0:00:01]} 46. Re2 {[%emt 0:00:00]} Re8 {[%emt 0:00:01]} 47. Nd6 {[%emt 0:00:00]} Re7 {[%emt 0:00:02]} 48. f4 {[%emt 0:00:00]} g6 {[%emt 0:00:02]} 49. g4 {[%emt 0:00:00]} Nd5 {[%emt 0:00:01]} 50. Kg3 {[%emt 0:00:00]} Kg7 {[%emt 0:00:01]} 51. Nc8 {[%emt 0:00:00]} Re8 {[%emt 0:00:01]} 52. Nd6 {[%emt 0:00:00]} Re7 {[%emt 0:00:01]} 53. f5 {[%emt 0:00:01]} gxf5 {[%emt 0:00:01]} 54. gxf5 {[%emt 0:00:00]} Kf6 {[%emt 0:00:01]} 55. Kf3 {[%emt 0:00:02]} Nc7 {[%emt 0:00:03]} 56. Rg2 {[%emt 0:00:01]} Rg7 {[%emt 0:00:02]} 57. Rxg7 {[%emt 0:00:02]} Kxg7 {[%emt 0:00:01]} 58. e7 {[%emt 0:00:01]} Kf6 {[%emt 0:00:07]} 59. e8=Q {[%emt 0:00:03]} Nxe8 {[%emt 0:00:01]} 60. Nxe8+ {[%emt 0:00:01]} Kxf5 {[%emt 0:00:00]} 61. Nd6+ {[%emt 0:00:01]} Ke5 {[%emt 0:00:02]} 62. Nxb7 {[%emt 0:00:01]} Kd4 {[%emt 0:00:01]} 63. Nxa5 {[%emt 0:00:35]} Kxc5 {[%emt 0:00:01]} 64. Nb7+ {[%emt 0:00:00]} Kb6 {[%emt 0:00:02]} 65. Nd8 {[%emt 0:00:00]} c5 {[%emt 0:00:01]} 66. Ne6 {[%emt 0:00:00]} c4 {[%emt 0:00:00]} 67. Ke4 {[%emt 0:00:00]} Ka5 {[%emt 0:00:01]} 68. Kd4 {[%emt 0:00:00]} Kb4 {[%emt 0:00:01]} 69. Nf4 {[%emt 0:00:00]} c3 {[%emt 0:00:01]} 70. Ne2 {[%emt 0:00:00]} c2 {[%emt 0:00:01]} 71. Kd3 {[%emt 0:00:01]} Kb3 {[%emt 0:00:01]} 72. a5 {[%emt 0:00:03]} Kb4 {[%emt 0:00:00]} 73. Ke4 {[%emt 0:00:16]} 1-0

[Event "Austria Championship Blitz 2024"]
[Site "Innsbruck"]
[Date "2024.06.01"]
[Round "9.6"]
[White "Kruckenhauser, Arthur"]
[Black "Schnegg, Daniel"]
[Result "1-0"]
[ECO "B06"]
[WhiteElo "2340"]
[BlackElo "2115"]
[Annotator "RC"]
[PlyCount "35"]
[EventDate "2024.06.01"]
[EventType "swiss"]
[EventCountry "AUT"]
[SourceTitle "playchess.com"]
[Source "ChessBase"]
[SourceQuality "1"]
[TimeControl "180+2"]

1. e4 {[%emt 0:00:01]} d6 {[%emt 0:00:01]} 2. d4 {[%emt 0:00:01]} g6 {[%emt 0:00:01]} 3. Nc3 {[%emt 0:00:01]} Bg7 {[%emt 0:00:01]} 4. Nf3 {[%emt 0:00:01]} e6 {[%emt 0:00:00]} 5. Be3 {[%emt 0:00:04]} Ne7 {[%emt 0:00:02]} 6. Qd2 {[%emt 0:00:03]} O-O {[%emt 0:00:03]} 7. Bh6 {[%emt 0:00:22]} Nd7 {[%emt 0:00:05]} 8. h4 {[%emt 0:00:06]} Nf6 {[%emt 0:00:03]} 9. Bd3 {[%emt 0:00:01]} Re8 {[%emt 0:00:08]} 10. e5 {[%emt 0:00:04]} dxe5 11. dxe5 {[%emt 0:00:01]} Ng4 {[%emt 0:00:21]} 12. Bxg7 {[%emt 0:00:02]} Kxg7 {[%emt 0:00:01]} 13. h5 {[%emt 0:00:00]} Nf5 {[%emt 0:00:04]} 14. Qf4 {[%emt 0:00:18]} Ngh6 {[%emt 0:00:11]} 15. hxg6 {[%emt 0:00:09]} fxg6 {[%emt 0:00:20]} 16. g4 {[%emt 0:00:06]} g5 {[%emt 0:00:01]} 17. Nxg5 {[%emt 0:00:07]} Qd4 {[%emt 0:00:09]} 18. Nge4 {[%emt 0:00:13]} 1-0

[Event "Austria Championship Blitz 2024"]
[Site "Innsbruck"]
[Date "2024.06.01"]
[Round "9.7"]
[White "Cafasso, Elia"]
[Black "Blaas, Hansjoerg"]
[Result "1-0"]
[ECO "B31"]
[WhiteElo "2178"]
[BlackElo "2222"]
[Annotator "RC"]
[PlyCount "71"]
[EventDate "2024.06.01"]
[EventType "swiss"]
[EventCountry "AUT"]
[SourceTitle "playchess.com"]
[Source "ChessBase"]
[SourceQuality "1"]
[TimeControl "180+2"]

1. e4 {[%emt 0:00:02]} c5 {[%emt 0:00:00]} 2. Nc3 {[%emt 0:00:01]} Nc6 {[%emt 0:00:01]} 3. Bb5 {[%emt 0:00:01]} g6 {[%emt 0:00:01]} 4. Nf3 {[%emt 0:00:02]} Bg7 {[%emt 0:00:01]} 5. Bxc6 {[%emt 0:00:01]} dxc6 {[%emt 0:00:01]} 6. d3 {[%emt 0:00:01]} Nf6 {[%emt 0:00:01]} 7. O-O {[%emt 0:00:02]} O-O {[%emt 0:00:01]} 8. Be3 {[%emt 0:00:03]} b6 {[%emt 0:00:01]} 9. h3 {[%emt 0:00:02]} Qc7 {[%emt 0:00:05]} 10. Qd2 {[%emt 0:00:04]} Rd8 {[%emt 0:00:02]} 11. Bf4 {[%emt 0:00:04]} Qd7 {[%emt 0:00:05]} 12. Rae1 {[%emt 0:00:10]} Nh5 {[%emt 0:00:06]} 13. Bh2 {[%emt 0:00:04]} c4 {[%emt 0:00:08]} 14. g4 {[%emt 0:00:25]} Nf6 {[%emt 0:00:01]} 15. Ne5 {[%emt 0:00:02]} Qe6 {[%emt 0:00:07]} 16. f4 {[%emt 0:00:06]} cxd3 {[%emt 0:00:05]} 17. f5 {[%emt 0:00:06]} Qd6 {[%emt 0:00:03]} 18. Nxd3 {[%emt 0:00:36]} Qd4+ {[%emt 0:00:03]} 19. Kh1 {[%emt 0:00:04]} Ba6 {[%emt 0:00:01]} 20. e5 {[%emt 0:00:08]} Nd5 {[%emt 0:00:13]} 21. Re4 {[%emt 0:00:03]} Nxc3 {[%emt 0:00:37]} 22. Rxd4 {[%emt 0:00:01]} Rxd4 {[%emt 0:00:04]} 23. Qxc3 {[%emt 0:00:03]} c5 {[%emt 0:00:04]} 24. f6 {[%emt 0:00:06]} exf6 {[%emt 0:00:03]} 25. exf6 {[%emt 0:00:01]} Bh6 {[%emt 0:00:03]} 26. Kg1 {[%emt 0:00:05]} Be3+ {[%emt 0:00:22]} 27. Kg2 {[%emt 0:00:01]} Bb7+ {[%emt 0:00:01]} 28. Kg3 {[%emt 0:00:02]} h5 {[%emt 0:00:16]} 29. Bg1 {[%emt 0:00:06]} h4+ {[%emt 0:00:10]} 30. Kh2 {[%emt 0:00:01]} Bxg1+ {[%emt 0:00:07]} 31. Kxg1 {[%emt 0:00:01]} Rad8 {[%emt 0:00:11]} 32. Qd2 {[%emt 0:00:03]} Kh7 {[%emt 0:00:03]} 33. Qg5 {[%emt 0:00:02]} Rh8 {[%emt 0:00:09]} 34. Re1 {[%emt 0:00:06]} Rdd8 {[%emt 0:00:17]} 35. Re7 {[%emt 0:00:06]} Bd5 {[%emt 0:00:00]} 36. Nf4 {[%emt 0:00:05]} 1-0